bitfinex/quotes_ETHUSD_20240921
["timestamp","ask_amount","ask_price","bid_price","bid_amount"]
[1726937997244,29.97,2562.7,2562.6,2.13014838]
[1726937999568,33.3,2562.7,2562.6,0.08194619]
[1726938001556,33.3,2562.7,2562.6,5.54079666]
[1726938001779,33.3,2562.7,2562.6,0.08194619]
[1726938002178,36.63,2562.7,2562.6,0.08194619]
[1726938002473,36.63,2562.7,2562.6,5.53986669]
[1726938002959,36.63,2562.7,2562.6,3.08194619]
[1726938003160,36.63,2562.7,2562.6,5.53986669]
[1726938003759,36.63,2562.7,2562.6,7.70520956]
[1726938003980,36.63,2562.7,2562.6,1.32209957]
[1726938004201,36.63,2562.7,2562.6,4.05672229]
[1726938004354,36.63,2562.7,2562.6,3.67065484]
[1726938004657,39.96,2562.7,2562.6,7.66641368]
[1726938005057,39.96,2562.7,2562.6,1.28034623]
[1726938005273,39.96,2562.7,2562.6,4.66149998]
[1726938005476,39.96,2562.7,2562.6,1.28034623]
[1726938005677,39.96,2562.7,2562.6,7.66138687]
[1726938005851,39.91,2562.7,2562.6,7.66138687]
[1726938006199,39.91,2562.7,2562.6,4.66146119]
[1726938006511,39.91,2562.7,2562.6,7.66146119]
[1726938007169,43.24,2562.7,2562.6,4.83034623]
[1726938007564,43.24,2562.7,2562.6,1.83034623]
[1726938008792,43.24,2562.7,2562.6,1.34593758]
[1726938009356,43.24,2562.7,2562.6,7.204131]
[1726938009579,46.57,2562.7,2562.6,7.204131]
[1726938010083,46.57,2562.7,2562.6,4.2040167]
[1726938010508,46.57,2562.7,2562.6,7.2040167]
[1726938010989,44.96733868,2562.7,2562.6,4.7845868]
[1726938011362,44.96733868,2562.7,2562.6,4.7885868]
[1726938011616,44.89943868,2562.7,2562.6,4.7885868]
[1726938012002,48.22943868,2562.7,2562.6,4.7885868]
[1726938012540,48.22943868,2562.7,2562.6,8.1606921]
[1726938012736,48.22943868,2562.7,2562.6,7.71804288]
[1726938013040,48.22943868,2562.7,2562.6,4.34593758]
[1726938013405,48.22943868,2562.7,2562.6,7.71690373]
[1726938014639,51.55943868,2562.7,2562.6,7.71690373]
[1726938015352,51.55943868,2562.7,2562.6,8.22895445]
[1726938016360,51.55943868,2562.7,2562.6,8.22676818]
[1726938016511,51.55943868,2562.7,2562.6,4.8579883]
[1726938017219,54.88943868,2562.7,2562.6,4.8579883]
[1726938017420,54.88943868,2562.7,2562.6,4.8619883]
[1726938018044,54.88943868,2562.7,2562.6,4.8579883]
[1726938018242,54.88943868,2562.7,2562.6,4.8619883]
[1726938018854,54.61152077,2562.7,2562.6,4.94001164]
[1726938019525,54.21361205,2562.7,2562.6,4.8619883]
[1726938020051,53.73195478,2562.7,2562.6,4.8619883]
[1726938020265,56.99775478,2562.7,2562.6,4.8619883]
[1726938021259,56.99775478,2562.7,2562.6,5.26937874]
[1726938021459,56.99775478,2562.7,2562.6,8.63815862]
[1726938022444,56.99775478,2562.7,2562.6,5.26937874]
[1726938022743,60.32775478,2562.7,2562.6,5.26937874]
[1726938024535,60.32775478,2562.7,2562.6,8.63815862]
[1726938025141,63.65775478,2562.7,2562.6,8.23076818]
[1726938025873,63.14152222,2562.7,2562.6,3.82712947]
[1726938026079,62.81249306,2562.7,2562.6,4.21726016]
[1726938026220,58.1291276,2562.7,2562.6,4.21726016]
[1726938026425,53.44576214,2562.7,2562.6,4.21726016]
[1726938026960,48.76239668,2562.7,2562.6,4.21726016]
[1726938027322,44.07903122,2562.7,2562.6,4.21726016]
[1726938027748,47.40903122,2562.7,2562.6,4.21326016]
[1726938028170,45.68122826,2562.7,2562.6,4.21326016]
[1726938028370,42.60159927,2562.7,2562.6,4.21726016]
[1726938028530,39.60159927,2562.7,2562.6,4.21726016]
[1726938028931,34.91829927,2562.7,2562.6,4.62451201]
[1726938029232,31.79049927,2562.7,2562.6,4.62451201]
[1726938029740,31.34179927,2562.7,2562.6,4.62451201]
[1726938029941,31.34179927,2562.7,2562.6,4.86283033]
[1726938030164,30.79179927,2562.7,2562.6,4.86283033]
[1726938030361,34.12179927,2562.7,2562.6,4.86283033]
[1726938030567,33.72779927,2562.7,2562.6,4.86283033]
[1726938030770,33.17779927,2562.7,2562.6,4.86283033]
[1726938032147,32.67447927,2562.7,2562.6,4.86283033]
[1726938032477,31.89547927,2562.7,2562.6,4.86283033]
[1726938033070,34.64110264,2562.7,2562.6,4.86283033]
[1726938033231,34.02477654,2562.7,2562.6,4.86283033]
[1726938033682,34.02477654,2562.7,2562.6,8.22601019]
[1726938034172,32.86347654,2562.7,2562.6,8.22601019]
[1726938034478,32.86347654,2562.7,2562.6,7.98769187]
[1726938034971,32.86347654,2562.7,2562.6,4.62451201]
[1726938035275,36.19347654,2562.7,2562.6,7.98878264]
[1726938035574,36.19347654,2562.7,2562.6,4.62451201]
[1726938036765,35.51431167,2562.7,2562.6,4.70253052]
[1726938037080,30.0665287,2562.7,2562.6,5.09323052]
[1726938037383,30.0665287,2562.7,2562.6,9.05292275]
[1726938037561,30.0665287,2562.7,2562.6,9.05374147]
[1726938037744,33.3965287,2562.7,2562.6,9.05374147]
[1726938037952,33.3965287,2562.7,2562.6,5.01521201]
[1726938040264,35.33039278,2562.7,2562.6,6.93767891]
[1726938040636,35.33039278,2562.7,2562.6,6.54697891]
[1726938043241,38.66039278,2562.7,2562.6,6.54697891]
[1726938045477,38.66039278,2562.7,2562.6,8.89097891]
[1726938045677,41.99039278,2562.7,2562.6,8.89097891]
[1726938046442,41.99039278,2562.7,2562.6,9.28167891]
[1726938047268,41.99039278,2562.7,2562.6,8.89097891]
[1726938047889,41.99039278,2562.7,2562.6,9.28167891]
[1726938048383,45.32039278,2562.7,2562.6,9.28167891]
[1726938048958,43.66315957,2562.7,2562.6,9.32962813]
[1726938049158,39.42315957,2562.7,2562.6,9.32962813]
[1726938049469,37.30315957,2562.7,2562.6,6.96851201]
[1726938049789,33.06315957,2562.7,2562.6,6.96851201]
[1726938049968,33.06315957,2562.7,2562.6,7.06851201]
[1726938049969,28.82315957,2562.7,2562.6,7.06851201]
[1726938050174,24.58315957,2562.7,2562.6,8.99097891]
[1726938050550,22.46315957,2562.7,2562.6,7.06851201]
[1726938050745,23.67315957,2562.7,2562.6,7.06851201]
[1726938051047,8.83315957,2562.7,2562.6,7.06851201]
[1726938051277,8.83315957,2562.7,2562.6,4.72451201]
[1726938051455,8.83315957,2562.7,2562.6,4.62451201]
[1726938053413,12.16315957,2562.7,2562.6,4.62451201]
[1726938055914,12.16315957,2562.7,2562.6,0.48695287]
[1726938056088,15.49315957,2562.7,2562.6,1.09664426]
[1726938056286,15.49315957,2562.7,2562.6,4.09664426]
[1726938057276,15.49315957,2562.7,2562.6,4.64664426]
[1726938058471,18.82315957,2562.7,2562.6,4.64664426]
[1726938058668,2.2947,2563.3,2562.8,2.0]
[1726938058905,2.2947,2563.3,2563.2,3.0]
[1726938059112,2.2947,2563.3,2563.2,3.55]
[1726938059319,2.2947,2563.3,2563.2,7.67070678]
[1726938060615,2.2947,2563.3,2563.2,0.61320903]
[1726938060833,2.2947,2563.3,2563.2,7.67071189]
[1726938061386,2.2947,2563.3,2563.2,3.61320903]
[1726938062084,2.2947,2563.5,2563.3,3.55]
[1726938062318,2.2947,2563.5,2563.3,7.61163663]
[1726938062531,2.2947,2563.5,2563.4,7.67078294]
[1726938063327,2.2947,2563.5,2563.4,3.61314631]
[1726938063635,0.0376675,2563.6,2563.5,3.55]
[1726938063778,0.0376675,2563.6,2563.5,7.60763663]
[1726938063978,0.0376675,2563.6,2563.5,7.6707336]
[1726938064181,0.0376675,2563.6,2563.5,3.61309697]
[1726938064377,0.0376675,2563.6,2563.5,8.28042499]
[1726938064581,0.0376675,2563.6,2563.5,4.22278836]
[1726938065039,0.0376675,2563.6,2563.5,4.7539516]
[1726938065316,0.0376675,2563.6,2563.5,4.67596098]
[1726938066079,0.0376675,2563.6,2563.5,4.06626959]
[1726938066323,0.0376675,2563.6,2563.5,8.12276693]
[1726938066507,0.0376675,2563.6,2563.5,4.06626959]
[1726938067584,0.0376675,2563.6,2563.5,4.67596098]
[1726938069220,0.0376675,2563.6,2563.5,31.27796998]
[1726938069421,0.0376675,2563.6,2563.5,27.53725098]
[1726938070552,0.0376675,2563.6,2563.5,17.56635898]
[1726938072229,0.0376675,2563.6,2563.5,21.62050433]
[1726938072412,0.0376675,2563.6,2563.5,17.56635898]
[1726938073750,0.0376675,2563.6,2563.5,17.80624331]
[1726938074283,0.0376675,2563.6,2563.5,21.86024092]
[1726938074544,0.0376675,2563.6,2563.5,17.80624331]
[1726938074748,1.5471045,2563.9,2563.5,18.54654331]
[1726938074939,1.5471045,2563.9,2563.8,3.0]
[1726938075144,0.0376675,2564.4,2563.8,0.004]
[1726938075352,0.0376675,2564.4,2564.2,2.85968896]
[1726938075566,0.0376675,2564.4,2564.3,3.0]
[1726938075767,0.0376675,2564.4,2564.3,3.06065037]
[1726938076225,0.0376675,2564.4,2564.3,0.06065037]
[1726938076425,3.3676675,2564.4,2564.3,3.0]
[1726938076671,3.3676675,2564.4,2564.3,3.06065037]
[1726938077739,5.7593675,2564.4,2564.3,3.06065037]
[1726938078941,9.0893675,2564.4,2564.3,3.06065037]
[1726938080681,1.29799165,2564.4,2564.3,12.76758792]
[1726938080830,1.29799165,2564.4,2564.3,10.95528486]
[1726938081345,1.29799165,2564.4,2564.3,7.57759776]
[1726938081543,4.62799165,2564.4,2564.3,8.12359776]
[1726938082067,4.62799165,2564.4,2564.3,6.43680075]
[1726938082469,4.62799165,2564.4,2564.3,3.06465037]
[1726938082676,4.62799165,2564.4,2564.3,6.44030673]
[1726938082974,4.62799165,2564.4,2564.3,6.43630673]
[1726938083878,4.62799165,2564.4,2564.3,7.59999812]
[1726938083879,2.8679642,2564.4,2564.3,7.59999812]
[1726938084081,6.1979642,2564.4,2564.3,3.67434176]
[1726938084237,6.1979642,2564.4,2564.3,7.04828073]
[1726938084667,6.1979642,2564.4,2564.3,3.67434176]
[1726938086953,9.5279642,2564.4,2564.3,13.85102376]
[1726938087286,9.3095212,2564.4,2564.3,19.99372361]
[1726938087451,9.3095212,2564.4,2564.3,16.61978464]
[1726938087653,9.3095212,2564.4,2564.3,19.99192508]
[1726938088177,9.3095212,2564.4,2564.3,19.99195325]
[1726938088399,8.6095212,2564.4,2564.3,19.52279237]
[1726938088676,8.6095212,2564.4,2564.3,16.35119139]
[1726938088855,8.6095212,2564.4,2564.3,16.03879239]
[1726938089780,11.9395212,2564.4,2564.3,16.03879239]
[1726938090151,11.9395212,2564.4,2564.3,10.75308]
[1726938090365,11.9395212,2564.4,2564.3,7.14145537]
[1726938090755,11.9395212,2564.4,2564.3,7.75114676]
[1726938092090,15.2695212,2564.4,2564.3,7.75114676]
[1726938094287,15.2695212,2564.4,2564.3,7.75514676]
[1726938094884,18.5995212,2564.4,2564.3,7.75514676]
[1726938095400,18.5995212,2564.4,2564.3,17.23574476]
[1726938095572,18.5995212,2564.4,2564.3,3.67434176]
[1726938095896,18.5995212,2564.4,2564.3,17.24588776]
[1726938097174,21.9295212,2564.4,2564.3,17.24588776]
[1726938097372,21.9295212,2564.4,2564.3,11.81534376]
[1726938098781,21.81280993,2564.4,2564.3,11.81534376]
[1726938099557,25.14280993,2564.4,2564.3,11.81534376]
[1726938100186,25.14280993,2564.4,2564.3,10.66974676]
[1726938102169,28.47280993,2564.4,2564.3,10.66974676]
[1726938102369,27.63721079,2564.4,2564.3,14.04027374]
[1726938102677,27.63721079,2564.4,2564.3,10.66974676]
[1726938104299,27.63721079,2564.4,2564.3,14.04027374]
[1726938104512,30.96721079,2564.4,2564.3,14.04027374]
[1726938105167,30.96721079,2564.4,2564.3,13.60651938]
[1726938105370,30.96721079,2564.4,2564.3,16.97835934]
[1726938105594,30.96721079,2564.4,2564.3,13.60651938]
[1726938106519,30.14611079,2564.4,2564.3,13.60651938]
[1726938107204,33.47611079,2564.4,2564.3,13.60651938]
[1726938108675,33.47611079,2564.4,2564.3,9.99948538]
[1726938108940,35.75141079,2564.4,2564.3,13.57792999]
[1726938109113,35.75141079,2564.4,2564.3,13.57392999]
[1726938109282,35.75141079,2564.4,2564.3,13.12075737]
[1726938109475,35.75141079,2564.4,2564.3,16.49536903]
[1726938109681,39.08141079,2564.4,2564.3,16.49536903]
[1726938110418,39.08141079,2564.4,2564.3,13.12075737]
[1726938111530,35.22091079,2564.4,2564.3,13.73044876]
[1726938111822,35.22091079,2564.4,2564.3,14.18762138]
[1726938112011,38.55091079,2564.4,2564.3,14.18762138]
[1726938113728,38.55091079,2564.4,2564.3,18.2415041]
[1726938113927,38.55091079,2564.4,2564.3,14.18762138]
[1726938114226,38.55091079,2564.4,2564.3,18.2415041]
[1726938114430,41.88091079,2564.4,2564.3,35.3144401]
[1726938116283,41.88091079,2564.4,2564.3,31.26055738]
[1726938116485,41.88091079,2564.4,2564.3,35.3134002]
[1726938116705,41.88091079,2564.4,2564.3,31.26055738]
[1726938116910,45.21091079,2564.4,2564.3,31.26055738]
[1726938117220,45.21091079,2564.4,2564.3,35.30936775]
[1726938117423,45.21091079,2564.4,2564.3,35.31336775]
[1726938117582,41.40485152,2564.4,2564.3,31.26055738]
[1726938119437,44.73485152,2564.4,2564.3,31.26055738]
[1726938119649,44.22403376,2564.4,2564.3,31.26055738]
[1726938120543,43.44783376,2564.4,2564.3,31.26055738]
[1726938121950,46.23613376,2564.4,2564.3,31.26055738]
[1726938122451,45.45993376,2564.4,2564.3,31.26055738]
[1726938124452,48.78993376,2564.4,2564.3,13.62001799]
[1726938124660,48.78993376,2564.4,2564.3,11.59587599]
[1726938125150,48.78993376,2564.4,2564.3,11.59987599]
[1726938125442,46.83553376,2564.4,2564.3,11.59987599]
[1726938125625,46.83553376,2564.4,2564.3,12.20956738]
[1726938126547,40.38843376,2564.4,2564.3,12.20956738]
[1726938126702,40.38843376,2564.4,2564.3,4.12751438]
[1726938127039,40.38843376,2564.4,2564.3,48.00379538]
[1726938127040,43.71843376,2564.4,2564.3,48.00379538]
[1726938128034,43.71843376,2564.4,2564.3,44.72954838]
[1726938128612,43.71843376,2564.4,2564.3,43.20818138]
[1726938129257,47.04843376,2564.4,2564.3,42.81191938]
[1726938129816,47.04843376,2564.4,2564.3,45.18571938]
[1726938131329,47.04843376,2564.4,2564.3,44.64617138]
[1726938131559,47.04843376,2564.4,2564.3,42.97327638]
[1726938131867,50.37843376,2564.4,2564.3,42.97327638]
[1726938132828,50.37843376,2564.4,2564.3,40.59947638]
[1726938133041,50.12843376,2564.4,2564.3,40.59947638]
[1726938133966,52.44933376,2564.4,2564.3,14.13100599]
[1726938134167,55.77933376,2564.4,2564.3,14.13100599]
[1726938134470,53.45843376,2564.4,2564.3,14.13100599]
[1726938136568,56.78843376,2564.4,2564.3,14.13100599]
[1726938137737,56.78843376,2564.4,2564.3,14.74069738]
[1726938138572,56.10672652,2564.4,2564.3,14.74069738]
[1726938139134,58.60672652,2564.4,2564.3,14.74069738]
[1726938140573,57.76032652,2564.4,2564.3,14.74069738]
[1726938140975,57.76032652,2564.4,2564.3,15.06541031]
[1726938141783,61.09032652,2564.4,2564.3,15.06541031]
[1726938142147,60.85032652,2564.4,2564.3,15.06541031]
[1726938143679,60.06092652,2564.4,2564.3,14.74069738]
[1726938143887,60.06092652,2564.4,2564.3,15.06542935]
[1726938144101,63.39092652,2564.4,2564.3,15.06542935]
[1726938144706,52.9107836,2564.4,2564.3,15.06542935]
[1726938144914,49.52174351,2564.4,2564.3,16.08459023]
[1726938145355,46.45274351,2564.4,2564.3,16.08459023]
[1726938145873,46.45274351,2564.4,2564.3,15.61542935]
[1726938146372,46.28724351,2564.4,2564.3,17.95942935]
[1726938146574,46.28724351,2564.4,2564.3,15.61542935]
[1726938146896,49.61724351,2564.4,2564.3,15.61542935]
[1726938147100,49.61724351,2564.4,2564.3,15.29069738]
[1726938147803,48.68344351,2564.4,2564.3,15.29069738]
[1726938148694,47.85994351,2564.4,2564.3,15.29069738]
[1726938149167,50.58054351,2564.4,2564.3,15.29069738]
[1726938149373,49.80434351,2564.4,2564.3,15.29069738]
[1726938151462,49.80434351,2564.4,2564.3,47.54153338]
[1726938151862,49.80434351,2564.4,2564.3,27.40834399]
[1726938152061,55.62564351,2564.4,2564.3,4.423977]
[1726938152263,2.4913,2564.3,2564.1,0.21497817]
[1726938152470,2.2135,2564.3,2564.2,20.044738]
[1726938152675,2.2135,2564.3,2564.1,21.870857]
[1726938152876,2.2135,2564.3,2564.1,13.526292]
[1726938153059,2.2135,2564.3,2564.1,13.526294]
[1726938153573,52.74583837,2564.4,2564.2,3.004]
[1726938153762,52.74583837,2564.4,2564.3,16.897991]
[1726938155098,52.74583837,2564.4,2564.3,9.966879]
[1726938156599,55.23713837,2564.4,2564.3,8.58029]
[1726938157175,58.56713837,2564.4,2564.3,8.58029]
[1726938159620,61.89713837,2564.4,2564.3,8.58029]
[1726938159811,61.89713837,2564.4,2564.3,8.63836926]
[1726938160114,61.89713837,2564.4,2564.3,8.87828745]
[1726938161080,61.89713837,2564.4,2564.3,7.93707445]
[1726938161438,61.89713837,2564.4,2564.3,7.11647072]
[1726938161597,61.89713837,2564.4,2564.3,3.05807926]
[1726938162285,65.22713837,2564.4,2564.3,3.05807926]
[1726938162530,65.18293837,2564.4,2564.3,3.05807926]
[1726938162888,65.18293837,2564.4,2564.3,0.05807926]
[1726938163327,62.69163837,2564.4,2564.2,3.0]
[1726938163536,62.69163837,2564.4,2564.3,6.43944829]
[1726938163537,65.01813837,2564.4,2564.3,6.43944829]
[1726938164215,65.01813837,2564.4,2564.3,0.05820025]
[1726938164383,65.01813837,2564.4,2564.3,6.43870045]
[1726938164587,68.34813837,2564.4,2564.3,6.43870045]
[1726938167123,71.67813837,2564.4,2564.3,6.43870045]
[1726938167328,71.67813837,2564.4,2564.3,0.05820025]
[1726938167329,75.70893365,2564.4,2564.3,0.05820025]
[1726938167538,75.70893365,2564.4,2564.3,2.86081805]
[1726938167740,75.70893365,2564.4,2564.3,2.91913602]
[1726938168548,71.67813837,2564.4,2564.3,0.05831797]
[1726938168756,71.67813837,2564.4,2564.3,3.0]
[1726938168898,71.67813837,2564.4,2564.3,3.05832451]
[1726938169903,75.00813837,2564.4,2564.3,3.05832451]
[1726938170703,74.98513837,2564.4,2564.3,3.05832451]
[1726938171519,74.98513837,2564.4,2564.3,0.05832451]
[1726938171717,74.94183837,2564.4,2564.2,5.85981429]
[1726938171920,2.3265,2564.3,2564.2,5.85981429]
[1726938172637,2.3265,2564.3,2564.2,3.0]
[1726938174814,5.6565,2564.3,2564.2,3.0]
[1726938175949,2.3265,2564.2,2564.1,3.0]
[1726938177362,5.6565,2564.2,2564.1,3.0]
[1726938178152,5.6565,2564.2,2564.1,3.21374498]
[1726938179043,5.6565,2564.2,2564.1,3.27068007]
[1726938179253,9.68729528,2564.2,2564.1,0.27068007]
[1726938179542,9.68729528,2564.2,2564.1,2.31007903]
[1726938179745,9.68729528,2564.2,2564.1,0.27068007]
[1726938180251,13.01729528,2564.2,2564.1,0.27068007]
[1726938180414,13.01729528,2564.2,2564.1,3.27068007]
[1726938182238,13.01729528,2564.2,2564.1,5.3092861]
[1726938182454,16.34729528,2564.2,2564.1,5.3092861]
[1726938182743,16.34729528,2564.2,2564.1,3.27068007]
[1726938183169,12.3165,2564.2,2564.1,5.30924816]
[1726938183326,12.3165,2564.2,2564.1,3.27068007]
[1726938183530,12.3165,2564.2,2564.1,5.3089656]
[1726938183754,12.3165,2564.2,2564.1,5.30892667]
[1726938184928,15.6465,2564.2,2564.1,5.30892667]
[1726938187461,18.9765,2564.2,2564.1,5.30892667]
[1726938187834,18.9765,2564.2,2564.1,3.27068007]
[1726938188034,18.9765,2564.2,2564.1,5.71657599]
[1726938188649,18.9765,2564.2,2564.1,3.27068007]
[1726938189085,18.9765,2564.2,2564.1,5.71565273]
[1726938189372,16.65,2564.2,2564.1,3.8374548]
[1726938189675,16.593,2564.2,2564.1,3.82468007]
[1726938189860,16.593,2564.2,2564.1,7.13032079]
[1726938190067,16.5719,2564.2,2564.1,7.12632079]
[1726938190279,19.9019,2564.2,2564.1,7.12632079]
[1726938191071,19.9019,2564.2,2564.1,7.13032079]
[1726938191280,19.9019,2564.2,2564.1,7.37099466]
[1726938192170,19.9019,2564.2,2564.1,7.36699466]
[1726938192565,19.9019,2564.2,2564.1,6.82099466]
[1726938193069,23.2319,2564.2,2564.1,3.96852656]
[1726938193297,23.2319,2564.2,2564.1,3.96452656]
[1726938193447,23.2154,2564.2,2564.1,3.96452656]
[1726938193876,23.2154,2564.2,2564.1,3.75078158]
[1726938194884,23.0332,2564.2,2564.1,4.30078158]
[1726938195179,22.8623,2564.2,2564.1,4.30078158]
[1726938195560,26.1923,2564.2,2564.1,4.30078158]
[1726938195958,24.39422483,2564.2,2564.1,21.75984758]
[1726938196156,24.39422483,2564.2,2564.1,25.13000057]
[1726938196367,24.39422483,2564.2,2564.1,20.65441671]
[1726938196682,24.39422483,2564.2,2564.1,21.69035232]
[1726938196881,24.39422483,2564.2,2564.1,25.74874378]
[1726938197260,24.39422483,2564.2,2564.1,25.2795829]
[1726938197459,24.39422483,2564.2,2564.1,25.47979663]
[1726938197848,24.39422483,2564.2,2564.1,21.42140517]
[1726938198052,27.72422483,2564.2,2564.1,25.46669725]
[1726938198877,27.72422483,2564.2,2564.1,21.42140517]
[1726938199267,27.72422483,2564.2,2564.1,25.46640533]
[1726938199853,27.72422483,2564.2,2564.1,21.42140517]
[1726938200066,27.72422483,2564.2,2564.1,25.46651575]
[1726938200376,31.05422483,2564.2,2564.1,25.46651575]
[1726938200551,31.05422483,2564.2,2564.1,25.46656153]
[1726938200750,31.05422483,2564.2,2564.1,21.42140517]
[1726938200964,31.05422483,2564.2,2564.1,25.46656524]
[1726938201178,31.05422483,2564.2,2564.1,21.42140517]
[1726938202153,31.05422483,2564.2,2564.1,21.89056605]
[1726938203070,34.38422483,2564.2,2564.1,21.89056605]
[1726938203451,34.38422483,2564.2,2564.1,21.42140517]
[1726938204461,34.38422483,2564.2,2564.1,20.85463044]
[1726938205058,34.38422483,2564.2,2564.1,6.62372144]
[1726938205265,34.38422483,2564.2,2564.1,52.07883544]
[1726938205790,37.71422483,2564.2,2564.1,52.07883544]
[1726938206197,37.71422483,2564.2,2564.1,50.34500397]
[1726938207969,37.71422483,2564.2,2564.1,36.74817572]
[1726938208168,41.04422483,2564.2,2564.1,36.74817572]
[1726938208661,41.04422483,2564.2,2564.1,39.82185997]
[1726938208862,41.04422483,2564.2,2564.1,39.49815422]
[1726938209084,41.04422483,2564.2,2564.1,39.49790647]
[1726938209298,41.04422483,2564.2,2564.1,36.7480598]
[1726938210813,44.37422483,2564.2,2564.1,36.7480598]
[1726938212409,44.37422483,2564.2,2564.1,36.99116744]
[1726938212699,44.37422483,2564.2,2564.1,37.31473523]
[1726938213278,47.70422483,2564.2,2564.1,37.31473523]
[1726938215068,47.70422483,2564.2,2564.1,36.7479605]
[1726938215468,47.70422483,2564.2,2564.1,40.78959728]
[1726938215699,51.03422483,2564.2,2564.1,40.7896337]
[1726938215896,51.03422483,2564.2,2564.1,36.7479605]
[1726938216261,51.03422483,2564.2,2564.1,39.81865859]
[1726938217161,51.03422483,2564.2,2564.1,39.81845821]
[1726938217500,51.03422483,2564.2,2564.1,39.81840249]
[1726938217800,51.03422483,2564.2,2564.1,39.81841117]
[1726938218216,54.36422483,2564.2,2564.1,39.81841117]
[1726938218801,54.36422483,2564.2,2564.1,35.91366188]
[1726938219317,54.31482483,2564.2,2564.1,35.59009409]
[1726938219531,54.31482483,2564.2,2564.1,35.91353936]
[1726938220011,54.26452483,2564.2,2564.1,35.91353936]
[1726938220824,57.59452483,2564.2,2564.1,35.91353936]
[1726938223428,60.92452483,2564.2,2564.1,36.48031409]
[1726938224713,60.46752483,2564.2,2564.1,36.48031409]
[1726938225835,63.79752483,2564.2,2564.1,36.48031409]
[1726938226344,63.79752483,2564.2,2564.1,36.15686882]
[1726938226514,63.79752483,2564.2,2564.1,36.4802957]
[1726938227538,63.78302483,2564.2,2564.1,36.4802957]
[1726938228250,67.11302483,2564.2,2564.1,36.15686882]
[1726938228404,67.11302483,2564.2,2564.1,36.48033329]
[1726938228605,67.11302483,2564.2,2564.1,36.15686882]
[1726938230607,70.44302483,2564.2,2564.1,36.15686882]
[1726938231609,70.44302483,2564.2,2564.1,33.23069409]
[1726938231805,70.44302483,2564.2,2564.1,25.53125009]
[1726938232146,70.44302483,2564.2,2564.1,21.3644168]
[1726938232447,72.93582483,2564.2,2564.1,16.21605847]
[1726938232755,72.93582483,2564.2,2564.1,4.44532448]
[1726938233050,72.93582483,2564.2,2564.1,0.39785147]
[1726938233467,76.26582483,2564.2,2564.1,0.39785147]
[1726938233929,76.26582483,2564.2,2564.1,3.94785147]
[1726938236362,79.59582483,2564.2,2564.1,3.94785147]
[1726938238548,79.59582483,2564.2,2564.1,4.31810421]
[1726938238750,86.54939608,2564.2,2564.1,4.31810421]
[1726938238952,86.54939608,2564.2,2564.1,0.94385147]
[1726938239157,82.92582483,2564.2,2564.1,0.94385147]
[1726938239826,82.92582483,2564.2,2564.1,3.94385147]
[1726938241669,86.25582483,2564.2,2564.1,3.94385147]
[1726938244435,89.58582483,2564.2,2564.1,3.94385147]
[1726938245372,89.58582483,2564.2,2564.1,6.24844526]
[1726938246888,89.58582483,2564.2,2564.1,6.2478561]
[1726938247231,92.91582483,2564.2,2564.1,6.2478561]
[1726938249851,96.24582483,2564.2,2564.1,6.2478561]
[1726938250377,96.24582483,2564.2,2564.1,3.94385147]
[1726938251271,96.24582483,2564.2,2564.1,6.7978561]
[1726938251785,96.24582483,2564.2,2564.1,6.7959037]
[1726938252117,96.24582483,2564.2,2564.1,2.8390822]
[1726938252118,98.35870005,2564.2,2564.1,2.8390822]
[1726938252404,101.68870005,2564.2,2564.1,2.50216582]
[1726938252901,101.68870005,2564.2,2564.1,0.05693509]
[1726938253502,101.68870005,2564.2,2564.1,5.50216582]
[1726938253704,101.68870005,2564.2,2564.1,3.05693509]
[1726938254972,105.01870005,2564.2,2564.1,3.05693509]
[1726938256832,105.01870005,2564.2,2564.1,5.09436979]
[1726938257897,108.34870005,2564.2,2564.1,5.09436979]
[1726938261127,111.67870005,2564.2,2564.1,5.09436979]
[1726938261626,111.67870005,2564.2,2564.1,5.09332635]
[1726938261826,109.56582483,2564.2,2564.1,5.09332635]
[1726938263837,112.89582483,2564.2,2564.1,5.09332635]
[1726938265731,112.89582483,2564.2,2564.1,3.60693509]
[1726938265896,112.89582483,2564.2,2564.1,3.61093509]
[1726938266098,112.89582483,2564.2,2564.1,3.60693509]
[1726938266340,116.22582483,2564.2,2564.1,3.60693509]
[1726938268035,113.73302483,2564.2,2564.1,6.0546046]
[1726938268949,117.06302483,2564.2,2564.1,6.0506046]
[1726938269805,117.06302483,2564.2,2564.1,6.04019964]
[1726938270518,117.06302483,2564.2,2564.1,3.59653013]
[1726938270941,117.06302483,2564.2,2564.1,3.59253013]
[1726938271319,120.39302483,2564.2,2564.1,3.59253013]
[1726938272100,120.39302483,2564.2,2564.1,3.59653013]
[1726938272948,122.72232483,2564.2,2564.1,3.59253013]
[1726938273830,126.05232483,2564.2,2564.1,3.59253013]
[1726938274438,126.05232483,2564.2,2564.1,6.4445948]
[1726938276299,123.72302483,2564.2,2564.1,3.59253013]
[1726938276501,127.05302483,2564.2,2564.1,3.59253013]
[1726938279021,130.38302483,2564.2,2564.1,3.59253013]
[1726938281647,2.3293,2564.4,2564.2,3.0]
[1726938281836,2.3293,2564.4,2564.3,5.89995492]
[1726938283938,5.6593,2564.4,2564.3,5.89995492]
[1726938285868,5.6593,2564.4,2564.3,6.44995492]
[1726938286017,5.6593,2564.4,2564.3,0.59231719]
[1726938286641,8.9893,2564.4,2564.3,0.59231719]
[1726938289219,12.3193,2564.4,2564.3,0.59231719]
[1726938290354,9.99,2564.4,2564.3,0.59231719]
[1726938291626,13.32,2564.4,2564.3,0.59231719]
[1726938294259,16.65,2564.4,2564.3,0.59231719]
[1726938296528,16.65,2564.4,2564.3,3.59231719]
[1726938296733,19.98,2564.4,2564.3,3.59231719]
[1726938299046,23.31,2564.4,2564.3,0.59231719]
[1726938299244,28.37758,2564.4,2564.3,5.8987971]
[1726938299455,28.37758,2564.4,2564.3,3.04231719]
[1726938300535,28.37758,2564.4,2564.3,2.49142981]
[1726938300732,28.37758,2564.4,2564.3,0.04231719]
[1726938301048,28.37758,2564.4,2564.3,2.49141132]
[1726938301358,28.37758,2564.4,2564.2,3.0]
[1726938301359,2.4878,2564.3,2564.2,2.44948349]
[1726938301587,2.4878,2564.2,2564.0,2.44948349]
[1726938303445,2.4878,2564.2,2563.9,5.44948349]
[1726938303928,2.4878,2564.2,2564.1,1.6335298]
[1726938304437,2.4878,2564.2,2564.0,1.6335298]
[1726938304634,0.5325558,2564.1,2564.0,1.6335298]
[1726938304847,2.9169558,2564.1,2564.0,1.6335298]
[1726938305474,2.9169558,2564.1,2563.9,1.6335298]
[1726938305965,2.9169558,2564.1,2563.7,1.6335298]
[1726938307359,2.9169558,2564.1,2563.6,4.6335298]
[1726938307566,2.3844,2563.9,2563.6,4.6335298]
[1726938307961,2.3844,2563.9,2563.7,1.6335298]
[1726938308375,2.3844,2563.9,2563.6,4.6335298]
[1726938308586,2.3844,2563.9,2563.7,1.6335298]
[1726938308885,2.3844,2563.9,2563.6,3.0]